fUSD/lending_fUSD_20250622
["ID","MTS","AMOUNT","RATE_DAILY","PERIOD"]
[366926895,1750583431986,-1043.95052194,0.000193,2]
[366926896,1750583431995,-168.0,0.00019334,2]
[366926897,1750583432006,-150.0,0.00019349,2]
[366926898,1750583432015,-553.0,0.00019386,2]
[366926899,1750583432024,-1000.0,0.000194,2]
[366926900,1750583432034,-150.0,0.0001947,2]
[366926901,1750583432043,-1740.0,0.000195,2]
[366926902,1750583432053,-168.0,0.00019511,2]
[366926904,1750583432062,-168.0,0.00019514,2]
[366926906,1750583432073,-151.0,0.00019523,2]
[366926908,1750583432082,-151.0,0.00019523,2]
[366926910,1750583432092,-300.0,0.00019523,2]
[366926912,1750583432101,-1165.77,0.00019534,2]
[366926914,1750583432111,-1165.77,0.00019534,2]
[366926916,1750583432120,-1165.77,0.00019534,2]
[366926918,1750583432130,-1165.77,0.00019534,2]
[366926920,1750583432139,-1165.77,0.00019534,2]
[366926921,1750583432149,-1165.77,0.00019534,2]
[366926923,1750583432158,-1165.77,0.00019534,2]
[366926926,1750583432168,-1165.77,0.00019534,2]
[366926928,1750583432177,-1165.77,0.00019534,2]
[366926929,1750583432187,-1165.77,0.00019534,2]
[366926932,1750583432197,-1763.79,0.00019534,2]
[366926933,1750583432206,-615.34469,0.0001956,2]
[366926936,1750583432216,-168.0,0.00019563,2]
[366926938,1750583432225,-168.0,0.00019599,2]
[366926940,1750583432235,-1026.328703,0.00019599,2]
[366926968,1750583432244,-3100.0,0.000196,7]
[366926973,1750583432535,-2377.8935,0.00019644,2]
[366926975,1750583432545,-1000.0,0.00019644,2]
[366926977,1750583432554,-5369.613,0.0001965,2]
[366926979,1750583432563,-156.0,0.0001965,2]
[366926981,1750583432574,-4096.0,0.0001965,2]
[366926983,1750583432584,-5399.6925564,0.00019652,2]
[366926985,1750583432594,-3213.01341586,0.0001967,2]
[366926988,1750583432614,-49493.84508414,0.0001967,2]
[366926990,1750583432624,-4702.05622772,0.0001967,2]
[366926992,1750583432634,-153.21839485,0.0001967,2]
[366926994,1750583432645,-397.1,0.0001968,2]
[366926996,1750583432655,-6300.0,0.000197,7]
[366926998,1750583432665,-150.0,0.00019706,2]
[366927000,1750583432674,-150.0,0.0001971,2]
[366927002,1750583432685,-150.0,0.00019712,2]
[366927004,1750583432695,-150.0,0.0001973,2]
[366927005,1750583432704,-150.0,0.00019732,2]
[366927008,1750583432714,-150.0,0.00019745,2]
[366927010,1750583432724,-150.0,0.00019745,2]
[366927012,1750583432734,-33615.1841402,0.00019747,2]
[366927014,1750583432744,-150.0,0.00019748,2]
[366927015,1750583432754,-150.0,0.00019749,2]
[366927017,1750583432764,-247.890171,0.00019752,2]
[366927020,1750583432774,-247.890171,0.00019752,2]
[366927021,1750583432784,-151.0,0.00019752,2]
[366927024,1750583432794,-150.0,0.00019752,2]
[366927026,1750583432804,-150.0,0.00019752,2]
[366927028,1750583432814,-150.0,0.00019752,2]
[366927030,1750583432825,-150.0,0.00019752,2]
[366927032,1750583432835,-150.0,0.00019752,2]
[366927034,1750583432845,-150.0,0.00019752,2]
[366927036,1750583432858,-3336.0,0.00019752,2]
[366927038,1750583432867,-803.0,0.00019752,2]
[366927040,1750583432877,-929.0,0.00019752,2]
[366927042,1750583432887,-1161.0,0.00019752,2]
[366927044,1750583432897,-1000.0,0.00019752,3]
[366927046,1750583432906,-896.0,0.00019752,3]
[366927048,1750583432916,-168.0,0.00019753,2]
[366927050,1750583432927,-150.0,0.00019753,2]
[366927052,1750583432939,-152.46598684,0.00019755,2]
[366927054,1750583432948,-834.42866044,0.00019757,3]
[366927056,1750583432958,-1000.0,0.00019757,3]
[366927058,1750583432968,-1000.0,0.00019757,3]
[366927060,1750583432978,-1000.0,0.00019757,3]
[366927062,1750583432989,-1000.0,0.00019757,3]
[366927064,1750583432999,-1000.0,0.00019757,3]
[366927066,1750583433009,-1000.0,0.00019757,3]
[366927068,1750583433019,-1000.0,0.00019757,3]
[366927070,1750583433029,-1000.0,0.00019757,3]
[366927072,1750583433039,-1000.0,0.00019757,3]
[366927074,1750583433050,-1000.0,0.00019757,3]
[366927076,1750583433060,-1000.0,0.00019757,3]
[366927078,1750583433071,-1000.0,0.00019757,3]
[366927080,1750583433082,-1000.0,0.00019757,3]
[366927082,1750583433093,-1000.0,0.00019757,3]
[366927084,1750583433103,-1000.0,0.00019757,3]
[366927086,1750583433113,-1000.0,0.00019757,3]
[366927088,1750583433123,-1000.0,0.00019757,3]
[366927090,1750583433133,-151.0,0.00019758,2]
[366927092,1750583433143,-247.890171,0.00019758,2]
[366927094,1750583433153,-247.890171,0.00019758,2]
[366927096,1750583433163,-151.0,0.00019758,2]
[366927098,1750583433173,-150.0,0.00019758,2]
[366927100,1750583433183,-1000.0,0.00019758,3]
[366927102,1750583433192,-1000.0,0.00019758,3]
[366927103,1750583433202,-1000.0,0.00019758,3]
[366927106,1750583433212,-1000.0,0.00019758,3]
[366927107,1750583433222,-511.37643192,0.00019758,3]
[366927156,1750583433947,-488.62356808,0.00019758,3]
[366927157,1750583433958,-1000.0,0.00019758,3]
[366927158,1750583433968,-1000.0,0.00019758,3]
[366927159,1750583433977,-1000.0,0.00019758,3]
[366927160,1750583433988,-1000.0,0.00019758,3]
[366927161,1750583433998,-1000.0,0.00019758,3]
[366927162,1750583434008,-1000.0,0.00019758,3]
[366927163,1750583434018,-151.0,0.00019759,2]
[366927164,1750583434027,-151.0,0.00019759,2]
[366927165,1750583434037,-151.0,0.00019759,2]
[366927166,1750583434047,-10947.21840669,0.00019761,2]
[366927167,1750583434059,-23189.15802523,0.00019761,2]
[366927168,1750583434072,-3786.18757447,0.00019761,2]
[366927169,1750583434084,-2490.16561573,0.00019761,2]
[366927170,1750583434096,-11494.45199486,0.00019761,2]
[366927171,1750583434106,-151.0,0.00019761,2]
[366927172,1750583434116,-151.0,0.00019761,2]
[366927173,1750583434126,-151.0,0.00019761,2]
[366927174,1750583434136,-151.0,0.00019761,2]
[366927175,1750583434147,-151.0,0.00019761,2]
[366927176,1750583434157,-6863.24337471,0.00019761,2]
[366927177,1750583434167,-151.0,0.00019764,2]
[366927178,1750583434177,-151.0,0.00019764,2]
[366927179,1750583434187,-151.419918,0.00019764,2]
[366927180,1750583434196,-151.0,0.00019764,2]
[366927181,1750583434206,-151.957109,0.00019764,2]
[366927182,1750583434216,-151.0,0.00019764,2]
[366927183,1750583434226,-150.0,0.00019768,2]
[366927184,1750583434236,-1000.0,0.00019768,2]
[366927185,1750583434246,-251.05753186,0.00019769,2]
[366927186,1750583434256,-161.92563428,0.00019769,2]
[366927187,1750583434266,-150.0,0.00019769,2]
[366927188,1750583434275,-301993.06486411,0.0001977,2]
[366927189,1750583434295,-22282.43947036,0.0001977,2]
[366927200,1750583437678,-885.0,0.0001965,2]
[366927201,1750583437688,-685.70831661,0.0001977,2]
[366927202,1750583437700,-1039.29054696,0.0001977,2]
[366927203,1750583437723,-457.36912179,0.0001977,2]
[366927204,1750583437837,-1042.42108382,0.0001977,2]
[366927205,1750583437850,-5451.19595435,0.0001977,2]
[366927206,1750583437890,-2615.92995068,0.0001977,2]
[366927207,1750583437944,-5521.50619645,0.0001977,2]
[366927208,1750583437957,-747.72575256,0.0001977,2]
[366927219,1750583439974,-659.63161297,0.0001977,2]
[366927220,1750583439986,-11399.72434574,0.0001977,2]
[366927221,1750583440185,-336.35404147,0.0001977,2]
[366927222,1750583440197,-6708.31410662,0.0001977,2]
[366927223,1750583440210,-3008.14923477,0.0001977,2]
[366927224,1750583440222,-1168.35794791,0.0001977,2]
[366927225,1750583440232,-151.917178,0.0001977,2]
[366927226,1750583440241,-151.0,0.0001977,2]
[366927227,1750583440251,-151.0,0.0001977,2]
[366927228,1750583440260,-270.940364,0.0001977,2]
[366927229,1750583440270,-151.7159,0.0001977,2]
[366927230,1750583440279,-151.0,0.0001977,2]
[366927231,1750583440289,-151.0,0.0001977,2]
[366927232,1750583440299,-151.0,0.0001977,2]
[366927233,1750583440309,-151.0,0.0001977,2]
[366927234,1750583440318,-151.0,0.0001977,2]
[366927235,1750583440330,-151.0,0.0001977,2]
[366927236,1750583440340,-151.0,0.0001977,2]
[366927238,1750583440349,-153.814664,0.0001977,2]
[366927240,1750583440359,-151.0,0.0001977,2]
[366927242,1750583440369,-151.0,0.0001977,2]
[366927244,1750583440378,-151.0,0.0001977,2]
[366927246,1750583440388,-151.0,0.0001977,2]
[366927248,1750583440398,-151.0,0.0001977,2]
[366927250,1750583440407,-151.0,0.0001977,2]
[366927252,1750583440416,-247.890171,0.0001977,2]
[366927254,1750583440425,-247.890171,0.0001977,2]
[366927256,1750583440435,-247.890171,0.0001977,2]
[366927258,1750583440444,-247.890171,0.0001977,2]
[366927260,1750583440454,-151.0,0.0001977,2]
[366927262,1750583440463,-151.584366,0.0001977,2]
[366927265,1750583440474,-151.0,0.0001977,2]
[366927267,1750583440483,-151.0,0.0001977,2]
[366927269,1750583440494,-564.0,0.00019772,2]
[366927271,1750583440504,-150.0,0.00019773,2]
[366927273,1750583440513,-150.0,0.00019778,2]
[366927275,1750583440523,-150.0,0.00019779,2]
[366927277,1750583440532,-151.0,0.00019788,2]
[366927278,1750583440542,-247.890171,0.00019788,2]
[366927280,1750583440551,-247.890171,0.00019788,2]
[366927281,1750583440560,-1000.0,0.00019789,2]
[366927283,1750583440570,-150.0,0.0001979,2]
[366927285,1750583440581,-344.0,0.0001979,2]
[366927287,1750583440591,-3100.52520765,0.00019791,2]
[366927581,1750583561691,195.68,0.00013699,2]
[366927582,1750583617177,-5000.0,0.000179,5]
[366927583,1750583651945,204.0,0.00017066,2]
[366927584,1750583681984,-565.0,0.000178,5]
[366927585,1750583682432,-300.0,0.00017933,2]
[366927586,1750583682475,-1799.18494443,0.00017966,2]
[366927587,1750583682501,-235.81505557,0.00018083,2]
[366927594,1750583921867,201.0,0.00017066,2]
[366927614,1750584372933,203.0,0.00016546,2]
[366927622,1750584518320,11956.36981503,0.000151,2]
[366927815,1750584568531,193.61,0.00013699,2]
[366927860,1750584632455,-250.0,0.0001793,2]
[366927861,1750584632465,-203.0,0.00018045,4]
[366927862,1750584632476,-64.18494443,0.00018083,2]
[366927863,1750584632486,-164.98456283,0.00018603,2]
[366927864,1750584632506,-2441.68543717,0.00018603,2]
[366927865,1750584632515,-1200.0,0.00018627,2]
[366927866,1750584632526,-300.0,0.00018627,2]
[366927867,1750584632538,-4464.90175589,0.00018628,2]
[366927868,1750584632560,-6192.51824411,0.00018628,2]
[366927869,1750584632570,-519.55993761,0.00018636,2]
[366927870,1750584632581,-480.44006239,0.00018636,2]
[366927871,1750584632590,-207.4,0.0001896,2]
[366927872,1750584632600,-448.0,0.00019056,2]
[366927873,1750584632609,-448.0,0.00019137,2]
[366927874,1750584632621,-666.0,0.00019178,2]
[366927875,1750584632630,-170.97,0.00019178,2]
[366927876,1750584632639,-326.8,0.0001937,2]
[366927877,1750584632648,-354.96,0.0001937,2]
[366927878,1750584632658,-554.0,0.00019377,2]
[366927879,1750584632668,-554.0,0.00019383,2]
[366927880,1750584632677,-448.0,0.00019384,2]
[366927881,1750584632971,-26400.0,0.000194,2]
[366927882,1750584632982,-448.0,0.00019449,2]
[366927883,1750584632992,-554.0,0.00019452,2]
[366927884,1750584633002,-898.037615,0.00019481,2]
[366927885,1750584633012,-2900.0,0.000195,7]
[366927886,1750584633022,-554.0,0.00019514,2]
[366927887,1750584633031,-203.0,0.00019543,6]
[366927888,1750584633042,-512.78724,0.0001959,2]
[366927889,1750584633051,-250.0,0.00019596,2]
[366927890,1750584633061,-250.0,0.00019596,2]
[366927891,1750584633071,-5900.0,0.000196,7]
[366927892,1750584633081,-1000.0,0.000196,2]
[366927893,1750584633090,-151.0,0.00019645,2]
[366927894,1750584633100,-500.0,0.00019645,2]
[366927895,1750584633111,-300.0,0.00019645,2]
[366927896,1750584633122,-500.0,0.00019645,2]
[366927897,1750584633131,-300.0,0.00019645,2]
[366927898,1750584633141,-500.0,0.00019645,2]
[366927899,1750584633151,-300.0,0.00019645,2]
[366927900,1750584633160,-300.0,0.00019645,2]
[366927901,1750584633170,-500.0,0.00019645,2]
[366927902,1750584633180,-300.0,0.00019645,2]
[366927903,1750584633189,-500.0,0.00019645,2]
[366927904,1750584633198,-300.0,0.00019645,2]
[366927905,1750584633208,-500.0,0.00019645,2]
[366927906,1750584633218,-300.0,0.00019645,2]
[366927907,1750584633227,-500.0,0.00019645,2]
[366927908,1750584633237,-300.0,0.00019645,2]
[366927909,1750584633247,-300.0,0.00019645,2]
[366927910,1750584633257,-300.0,0.00019645,2]
[366927911,1750584633266,-151.0,0.00019645,2]
[366927912,1750584633276,-259.20877868,0.00019645,2]
[366927913,1750584633286,-651.3654,0.00019657,2]
[366927914,1750584633295,-11820.2342,0.00019657,2]
[366927915,1750584633308,-730.7046,0.00019661,2]
[366927916,1750584633318,-28560.4155,0.0001967,2]
[366927917,1750584633327,-680.75,0.0001968,2]
[366927918,1750584633337,-4898.0218663,0.00019682,2]
[366927919,1750584633347,-554.0,0.00019682,2]
[366927920,1750584633357,-300.0,0.0001969,2]
[366927921,1750584633367,-8900.0,0.000197,7]
[366927922,1750584633378,-150.0,0.00019707,2]
[366927923,1750584633389,-150.0,0.00019714,2]
[366927924,1750584633399,-1000.0,0.00019725,2]
[366927925,1750584633409,-150.0,0.00019725,2]
[366927926,1750584633418,-150.0,0.00019728,2]
[366927927,1750584633427,-1000.0,0.00019731,2]
[366927928,1750584633436,-218.99815889,0.00019732,2]
[366927929,1750584633446,-150.0,0.00019733,2]
[366927930,1750584633455,-150.0,0.00019736,2]
[366927931,1750584633465,-150.0,0.00019742,2]
[366927932,1750584633474,-150.0,0.00019743,2]
[366927933,1750584633483,-150.0,0.00019745,2]
[366927934,1750584633492,-150.0,0.00019759,2]
[366927935,1750584633502,-150.0,0.0001976,2]
[366927936,1750584633511,-159.44,0.00019772,2]
[366927937,1750584633521,-159.44,0.00019772,2]
[366927938,1750584633530,-159.44,0.00019772,2]
[366927939,1750584633539,-2331.18,0.00019781,2]
[366927940,1750584633549,-4390.39159675,0.00019781,2]
[366927941,1750584633558,-5397.5395693,0.00019782,2]
[366927942,1750584633568,-6459.0078283,0.00019782,2]
[366927943,1750584633577,-168262.5134029,0.00019782,2]
[366927944,1750584633587,-150.0,0.00019789,2]
[366927945,1750584633597,-300.0,0.00019791,2]
[366927946,1750584633606,-150.0,0.00019792,2]
[366927947,1750584633616,-158.088345,0.00019794,2]
[366927948,1750584633627,-151.0,0.00019794,2]
[366927949,1750584633637,-151.0,0.00019794,2]
[366927950,1750584633647,-151.0,0.00019794,2]
[366927951,1750584633656,-151.0,0.00019794,2]
[366927952,1750584633666,-151.0,0.00019794,2]
[366927953,1750584633675,-151.0,0.00019794,2]
[366927954,1750584633685,-151.0,0.00019794,2]
[366927955,1750584633694,-151.0,0.00019794,2]
[366927956,1750584633704,-150.0,0.00019795,2]
[366927957,1750584633713,-11900.0,0.000198,7]
[366927958,1750584633723,-150.0,0.00019813,2]
[366927959,1750584633732,-150.0,0.00019813,2]
[366927960,1750584633742,-150.27870469,0.00019814,2]
[366927961,1750584633751,-150.0,0.00019815,2]
[366927962,1750584633761,-151.0,0.00019818,2]
[366927963,1750584633771,-150.0,0.00019821,2]
[366927964,1750584633781,-150.0,0.00019822,2]
[366927965,1750584633790,-150.0,0.00019822,2]
[366927966,1750584633800,-150.0,0.00019824,2]
[366927967,1750584633809,-642.685,0.00019831,2]
[366927968,1750584633819,-803.0,0.00019831,2]
[366927969,1750584633829,-559.0,0.00019831,2]
[366927970,1750584633838,-596.154,0.00019831,2]
[366927971,1750584633848,-1278.0,0.00019831,2]
[366927972,1750584633858,-2013.4,0.00019831,2]
[366927973,1750584633868,-931.903,0.00019831,2]
[366927974,1750584633879,-1681.502,0.00019831,2]
[366927975,1750584633887,-1161.0,0.00019831,2]
[366927976,1750584633896,-156.0,0.00019831,2]
[366927977,1750584633906,-3336.0,0.00019831,2]
[366927978,1750584633915,-7117.0,0.00019831,2]
[366927979,1750584633926,-151.0,0.00019834,2]
[366927980,1750584633935,-1000.0,0.00019837,2]
[366927981,1750584633944,-155.924061,0.00019846,2]
[366927982,1750584633954,-150.0,0.00019849,2]
[366927983,1750584633964,-150.0,0.00019849,2]
[366927984,1750584633973,-295.774,0.00019855,2]
[366927985,1750584633983,-150.0,0.00019856,2]
[366927986,1750584633992,-150.0,0.00019856,2]
[366927987,1750584634002,-151.0,0.00019858,2]
[366927988,1750584634012,-151.0,0.00019858,2]
[366927989,1750584634022,-151.0,0.00019859,2]
[366927990,1750584634032,-151.20518505,0.00019859,2]
[366927991,1750584634042,-150.0,0.00019863,2]
[366927992,1750584634052,-150.0,0.00019868,2]
[366927993,1750584634062,-159.44,0.00019869,2]
[366927994,1750584634072,-500.0,0.00019872,5]
[366927995,1750584634082,-300.0,0.00019872,2]
[366927996,1750584634092,-500.0,0.00019872,5]
[366927997,1750584634100,-150.0,0.00019873,2]
[366927998,1750584634110,-150.0,0.00019876,2]
[366927999,1750584634119,-151.0,0.00019877,2]
[366928000,1750584634130,-151.0,0.00019877,2]
[366928001,1750584634140,-150.0,0.00019877,2]
[366928002,1750584634148,-150.0,0.00019877,2]
[366928003,1750584634157,-151.0,0.00019878,2]
[366928004,1750584634167,-151.0,0.00019878,2]
[366928005,1750584634176,-153.21839483,0.00019878,2]
[366928006,1750584634186,-5000.0,0.00019879,2]
[366928007,1750584634195,-8551.2448,0.00019879,2]
[366928008,1750584634205,-151.0,0.00019879,2]
[366928009,1750584634215,-151.0,0.00019879,2]
[366928010,1750584634225,-151.0,0.00019879,2]
[366928011,1750584634235,-229.95475271,0.00019879,2]
[366928012,1750584634245,-151.0,0.0001988,2]
[366928013,1750584634254,-151.0,0.0001988,2]
[366928014,1750584634264,-151.0,0.0001988,2]
[366928015,1750584634273,-151.0,0.0001988,2]
[366928016,1750584634283,-151.0,0.0001988,2]
[366928017,1750584634293,-151.0,0.0001988,2]
[366928018,1750584634304,-151.0,0.0001988,2]
[366928019,1750584634316,-434.42438784,0.0001988,2]
[366928020,1750584634326,-214.39860607,0.0001988,2]
[366928021,1750584634335,-150.0,0.00019881,2]
[366928022,1750584634345,-1000.0,0.00019881,2]
[366928023,1750584634355,-150.0,0.00019883,2]
[366928024,1750584634365,-150.0,0.00019886,2]
[366928025,1750584634375,-151.0,0.00019887,2]
[366928026,1750584634385,-151.0,0.00019887,2]
[366928027,1750584634394,-150.0,0.00019891,2]
[366928028,1750584634404,-150.0,0.00019894,2]
[366928029,1750584634414,-150.0,0.00019898,2]
[366928030,1750584634425,-804.0,0.000199,2]
[366928031,1750584634435,-151.0,0.000199,2]
[366928032,1750584634445,-234.934026,0.000199,2]
[366928033,1750584634455,-150.0,0.000199,2]
[366928034,1750584634465,-14800.0,0.000199,7]
[366928035,1750584634474,-1119.88193889,0.000199,2]
[366928036,1750584634484,-150.0,0.00019904,2]
[366928037,1750584634494,-150.0,0.00019905,2]
[366928038,1750584634504,-4390.39159672,0.00019905,2]
[366928039,1750584634514,-150.0,0.00019907,2]
[366928040,1750584634524,-150.0,0.00019907,2]
[366928041,1750584634533,-150.0,0.00019907,2]
[366928042,1750584634543,-150.0,0.00019916,2]
[366928043,1750584634554,-150.0,0.00019921,2]
[366928044,1750584634564,-168.0,0.00019925,2]
[366928045,1750584634574,-150.0,0.00019926,2]
[366928046,1750584634584,-150.0,0.00019937,2]
[366928047,1750584634594,-168.0,0.00019944,2]
[366928048,1750584634604,-388.0,0.00019945,2]
[366928049,1750584634615,-150.0,0.00019956,2]
[366928050,1750584634625,-150.0,0.00019957,2]
[366928051,1750584634635,-300.0,0.00019958,2]
[366928052,1750584634645,-150.0,0.00019958,2]
[366928053,1750584634654,-500.0,0.00019959,2]
[366928054,1750584634664,-334.37454839,0.00019959,2]
[366928055,1750584634674,-500.0,0.00019959,2]
[366928056,1750584634684,-217.19965227,0.00019959,2]
[366928057,1750584634694,-500.0,0.00019959,2]
[366928058,1750584634703,-550.81988383,0.00019959,2]
[366928059,1750584634714,-500.0,0.00019959,2]
[366928060,1750584634723,-264.6170604,0.00019959,2]
[366928061,1750584634733,-500.0,0.00019959,2]
[366928062,1750584634742,-484.24401216,0.00019959,2]
[366928063,1750584634752,-317.68359563,0.00019959,2]
[366928064,1750584634762,-2500.0,0.0001996,2]
[366928065,1750584634772,-159.44,0.0001996,2]
[366928066,1750584634781,-150.0,0.00019966,2]
[366928067,1750584634791,-150.0,0.00019968,2]
[366928068,1750584634801,-168.0,0.00019969,2]
[366928069,1750584634811,-151.5,0.0001997,2]
[366928070,1750584634820,-151.5,0.0001997,2]
[366928071,1750584634830,-151.5,0.0001997,2]
[366928072,1750584634840,-151.5,0.0001997,2]
[366928073,1750584634850,-151.5,0.0001997,2]
[366928074,1750584634860,-151.5,0.0001997,2]
[366928075,1750584634870,-151.5,0.0001997,2]
[366928076,1750584634881,-232.71765386,0.0001997,2]
[366928077,1750584634891,-500.90972017,0.0001997,2]
[366928078,1750584634901,-500.0,0.0001997,2]
[366928079,1750584634911,-151.5,0.0001997,2]
[366928080,1750584634920,-151.5,0.0001997,2]
[366928081,1750584634930,-151.5,0.0001997,2]
[366928082,1750584634941,-151.5,0.0001997,2]
[366928083,1750584634950,-151.5,0.0001997,2]
[366928084,1750584634960,-151.5,0.0001997,2]
[366928085,1750584634970,-151.5,0.0001997,2]
[366928086,1750584634979,-151.5,0.0001997,2]
[366928087,1750584634989,-151.5,0.0001997,2]
[366928088,1750584634998,-151.5,0.0001997,2]
[366928089,1750584635008,-151.5,0.0001997,2]
[366928090,1750584635018,-151.5,0.0001997,2]
[366928091,1750584635027,-151.5,0.0001997,2]
[366928092,1750584635036,-232.71765386,0.0001997,2]
[366928093,1750584635046,-890183.04393901,0.00019972,3]
[366928094,1750584635080,-968.0740483,0.00019972,3]
[366928095,1750584635091,-315.94,0.00019972,3]
[366928096,1750584635103,-9028.58371268,0.00019972,3]
[366928097,1750584635168,-4563.8599457,0.00019972,3]
[366928098,1750584635179,-330.4302491,0.00019972,3]
[366928099,1750584635190,-583.18548524,0.00019972,3]
[366928222,1750584637774,-951.377,0.00019831,2]
[366928223,1750584637784,-256.27705408,0.00019972,3]
[366928224,1750584637796,-316.73,0.00019972,3]
[366928225,1750584637808,-45442.78183328,0.00019972,3]
[366928226,1750584637819,-15578.61380999,0.00019972,3]
[366928227,1750584637831,-1072.35,0.00019972,3]
[366928228,1750584637850,-496.91044416,0.00019972,3]
[366928229,1750584637901,-686.5631424,0.00019972,3]
[366928230,1750584637913,-2337.77520303,0.00019972,3]
[366928231,1750584637924,-876.49466244,0.00019972,3]
[366928232,1750584638119,-808.71829025,0.00019972,3]
[366928233,1750584638131,-528.69395831,0.00019972,3]
[366928234,1750584638143,-1085.09011866,0.00019972,3]
[366928407,1750584640078,-1639.9999995,0.00019972,3]
[366928408,1750584640090,-355.11,0.00019972,3]
[366928409,1750584640232,-22972.45489729,0.00019972,3]
[366928410,1750584640244,-5116.66085762,0.00019972,3]
[366928439,1750584643238,-4096.0,0.00019831,2]
[366928440,1750584643247,-1582.38,0.00019972,3]
[366928441,1750584643272,-1448.34152575,0.00019972,3]
[366928463,1750584645911,-276.0767866,0.00019972,3]
[366928464,1750584645923,-1301.35902237,0.00019972,3]
[366928465,1750584646126,-591.50542066,0.00019972,2]
[366928493,1750585067406,-262.55,0.00018626,2]
[366928494,1750585067428,-906.68,0.00018922,2]
[366928495,1750585067449,-200.0,0.00018931,2]
[366928496,1750585067471,-200.0,0.00018955,7]
[366928497,1750585067494,-200.0,0.00019042,2]
[366928498,1750585067516,-250.0,0.00019249,2]
[366928499,1750585067538,-800.0,0.000196,7]
[366928500,1750585067561,-250.0,0.00019627,2]
[366928501,1750585067582,-206.6202,0.00019682,2]
[366928502,1750585067603,-1600.0,0.000197,7]
[366928503,1750585067626,-168.0,0.00019763,2]
[366928504,1750585067648,-2400.0,0.000198,7]
[366928505,1750585067670,-1000.0,0.000198,2]
[366928506,1750585067692,-344.0,0.00019835,2]
[366928507,1750585067717,-1200.0,0.00019862,2]
[366928508,1750585067740,-12.1498,0.00019862,2]
[366928509,1750585073203,3604.0,0.000154,5]
[366928510,1750585078887,-287.8502,0.00019862,2]
[366928511,1750585078908,-300.0,0.00019862,2]
[366928512,1750585078931,-4408.21967967,0.00019863,2]
[366928513,1750585078952,-386.3068,0.00019864,2]
[366928514,1750585078973,-236.619,0.0001987,2]
[366928515,1750585078995,-207.4,0.00019877,2]
[366928516,1750585079017,-191.62338902,0.0001988,2]
[366928517,1750585079039,-3512.31327743,0.0001988,2]
[366928518,1750585079062,-153.21839483,0.0001988,2]
[366928519,1750585079083,-316.44925905,0.00019889,2]
[366928520,1750585079329,-568.55074095,0.00019889,2]
[366928521,1750585079350,-855.0,0.00019889,2]
[366928522,1750585079371,-1161.0,0.00019889,2]
[366928523,1750585079394,-3200.0,0.000199,7]
[366928524,1750585079424,-1082.55254084,0.000199,2]
[366928525,1750585079444,-377.57941121,0.00019936,2]
[366928526,1750585079465,-2755.317307,0.00019963,2]
[366928527,1750585079809,-4961.7204457,0.00019963,2]
[366928528,1750585079830,-5038.2795543,0.00019963,2]
[366928529,1750585080385,-7517.5287469,0.00019963,2]
[366928530,1750585080407,-2482.4712531,0.00019963,2]
[366928531,1750585080798,-10000.0,0.00019963,2]
[366928532,1750585081161,-10000.0,0.00019963,2]
[366928533,1750585081636,-10000.0,0.00019963,2]
[366928534,1750585082124,-10000.0,0.00019963,2]
[366928535,1750585082634,-10000.0,0.00019963,2]